lending/lending_fUSD_20240112
["ID","MTS","AMOUNT","RATE_DAILY","PERIOD"]
[311410305,1705078242026,-500.0,0.00023327,2]
[311410307,1705078242035,-167.10440387,0.00023327,2]
[311410309,1705078242045,-500.0,0.00023327,2]
[311410310,1705078242054,-187.11380649,0.00023327,2]
[311410311,1705078242064,-500.0,0.00023327,2]
[311410312,1705078242073,-500.0,0.00023327,2]
[311410313,1705078242083,-568.7,0.00023327,2]
[311410314,1705078242092,-413.42869368,0.00023327,2]
[311410315,1705078242103,-500.0,0.00023328,2]
[311410316,1705078242113,-500.0,0.00023328,2]
[311410317,1705078242123,-500.0,0.00023328,2]
[311410318,1705078242133,-505.02,0.00023328,2]
[311410320,1705078242142,-500.0,0.00023328,2]
[311410322,1705078242151,-551.15196404,0.00023328,2]
[311410324,1705078242160,-500.0,0.00023328,2]
[311410326,1705078242171,-170.22,0.00023328,2]
[311410328,1705078242181,-500.0,0.00023331,2]
[311410330,1705078242190,-152.61,0.0002335,2]
[311410332,1705078242199,-166.22,0.00023402,2]
[311410334,1705078242209,-152.61,0.00023465,2]
[311410336,1705078242218,-166.22,0.00023517,2]
[311410338,1705078242228,-155.11,0.00023542,2]
[311410340,1705078242237,-152.61,0.00023579,2]
[311410342,1705078242246,-500.0,0.00023601,2]
[311410344,1705078242255,-500.0,0.00023601,2]
[311410346,1705078242264,-500.0,0.00023601,2]
[311410348,1705078242274,-500.0,0.00023601,2]
[311410350,1705078242283,-623.18051339,0.00023601,2]
[311410352,1705078242292,-580.48,0.00023601,2]
[311410354,1705078242302,-186.48,0.00023601,2]
[311410356,1705078242311,-500.0,0.00023601,2]
[311410388,1705078242321,-292.43,0.00023601,2]
[311410392,1705078242588,-508.70709871,0.00023601,2]
[311410394,1705078242601,-500.0,0.00023601,2]
[311410396,1705078242610,-500.0,0.00023601,2]
[311410398,1705078242620,-500.0,0.00023601,2]
[311410400,1705078242629,-500.0,0.00023601,2]
[311410402,1705078242638,-335.03084942,0.00023601,2]
[311410405,1705078242647,-410.4948717,0.00023601,2]
[311410407,1705078242657,-634.88,0.00023601,2]
[311410409,1705078242666,-500.0,0.00023601,2]
[311410411,1705078242675,-520.42,0.00023601,2]
[311410413,1705078242685,-500.0,0.00023601,2]
[311410415,1705078242695,-500.0,0.00023601,2]
[311410417,1705078242703,-500.0,0.00023602,2]
[311410419,1705078242713,-424.0,0.00023602,2]
[311410421,1705078242722,-500.0,0.00023602,2]
[311410423,1705078242731,-617.73,0.00023602,2]
[311410425,1705078242741,-500.0,0.00023602,2]
[311410427,1705078242750,-500.0,0.00023605,2]
[311410429,1705078242759,-711.54,0.00023607,2]
[311410431,1705078242768,-166.22,0.00023631,2]
[311410433,1705078242778,-384.9,0.00023647,2]
[311410435,1705078242788,-168.39287458,0.00023691,2]
[311410437,1705078242797,-152.61,0.00023694,2]
[311410439,1705078242807,-166.22,0.00023745,2]
[311410441,1705078242816,-152.61,0.00023808,2]
[311410443,1705078242825,-166.22,0.00023859,2]
[311410445,1705078242834,-500.0,0.00023875,2]
[311410447,1705078242843,-500.0,0.00023875,2]
[311410449,1705078242855,-346.93664038,0.00023875,2]
[311410451,1705078242864,-500.0,0.00023875,2]
[311410453,1705078242873,-500.0,0.00023875,2]
[311410455,1705078242882,-500.0,0.00023875,2]
[311410457,1705078242891,-500.0,0.00023875,2]
[311410459,1705078242900,-543.22203746,0.00023875,2]
[311410461,1705078242909,-500.0,0.00023876,2]
[311410463,1705078242919,-500.0,0.00023876,2]
[311410465,1705078242928,-264.0,0.00023876,2]
[311410467,1705078242937,-500.0,0.00023879,2]
[311410469,1705078242947,-152.61,0.00023923,2]
[311410471,1705078242956,-155.7,0.00023967,2]
[311410473,1705078242965,-430.99724455,0.00024,2]
[311410475,1705078242975,-200.51702309,0.00024,2]
[311410477,1705078242984,-155.11,0.00024127,2]
[311410479,1705078242993,-500.0,0.00024149,2]
[311410481,1705078243002,-500.0,0.00024149,2]
[311410483,1705078243011,-500.0,0.00024149,2]
[311410485,1705078243020,-477.29,0.00024149,2]
[311410487,1705078243029,-236.45,0.00024149,2]
[311410489,1705078243039,-500.0,0.0002415,2]
[311410491,1705078243048,-472.45916751,0.0002415,2]
[311410494,1705078243058,-500.0,0.00024153,2]
[311410496,1705078243067,-292.14,0.00024287,2]
[311410498,1705078243077,-200.0,0.00024401,2]
[311410500,1705078243085,-840.0,0.00024401,2]
[311410502,1705078243094,-500.0,0.00024423,2]
[311410504,1705078243105,-197.31945429,0.00024423,2]
[311410506,1705078243114,-500.0,0.00024423,2]
[311410508,1705078243124,-500.0,0.00024424,2]
[311410510,1705078243135,-500.0,0.00024427,2]
[311410512,1705078243145,-500.0,0.000246,2]
[311410514,1705078243154,-384.9,0.00024625,2]
[311410516,1705078243165,-250.0,0.00024658,2]
[311410518,1705078243174,-500.0,0.00024697,2]
[311410520,1705078243183,-500.0,0.00024697,2]
[311410522,1705078243192,-500.0,0.00024698,2]
[311410524,1705078243201,-500.0,0.00024701,2]
[311410526,1705078243210,-736.78,0.00024701,2]
[311410528,1705078243220,-155.11,0.00024713,2]
[311410530,1705078243230,-14024.67514003,0.00024745,2]
[311410532,1705078243239,-4071.7204,0.00024888,2]
[311410534,1705078243248,-500.0,0.00024888,2]
[311410536,1705078243257,-500.0,0.00024971,2]
[311410537,1705078243266,-389.16,0.00024971,2]
[311410540,1705078243276,-500.0,0.00024972,2]
[311410542,1705078243285,-500.0,0.00024975,2]
[311410544,1705078243294,-201.78427875,0.00025,2]
[311410546,1705078243303,-167.16432493,0.00025,2]
[311410548,1705078243313,-302.84681763,0.00025,2]
[311410550,1705078243323,-1000.0,0.00025,2]
[311410552,1705078243332,-1250.0,0.00025,3]
[311410554,1705078243341,-5000.0,0.00025148,2]
[311410556,1705078243351,-2000.0,0.0002515,3]
[311410558,1705078243360,-250.0,0.00025151,2]
[311410560,1705078243369,-500.0,0.00025245,2]
[311410562,1705078243379,-500.0,0.00025246,2]
[311410564,1705078243388,-500.0,0.00025249,2]
[311410566,1705078243397,-155.11,0.00025298,2]
[311410568,1705078243406,-337.09735204,0.00025519,2]
[311410570,1705078243415,-555.4,0.0002552,2]
[311410572,1705078243424,-500.0,0.00025523,2]
[311410574,1705078243433,-384.9,0.00025604,2]
[311410576,1705078243442,-725.57,0.00025794,2]
[311410578,1705078243451,-500.0,0.00025797,2]
[311410580,1705078243460,-155.11,0.00025884,2]
[311410582,1705078243469,-155.7,0.00026028,2]
[311410584,1705078243478,-500.0,0.00026071,2]
[311410586,1705078243487,-150.0,0.00026079,2]
[311410588,1705078243496,-500.0,0.00026345,2]
[311410590,1705078243505,-6182.51,0.00026575,2]
[311410592,1705078243515,-1951.6,0.00026575,2]
[311410594,1705078243524,-384.9,0.00026582,2]
[311410596,1705078243533,-500.0,0.00026619,2]
[311410599,1705078243543,-546.42712193,0.00026642,2]
[311410602,1705078243551,-14024.67514003,0.00026761,2]
[311410604,1705078243561,-460.54415391,0.00026893,2]
[311410606,1705078243571,-155.0,0.00027,2]
[311410608,1705078243579,-12283.43506918,0.00027,2]
[311410610,1705078243588,-1300.0,0.00027,3]
[311410612,1705078243598,-200.0,0.00027113,2]
[311410614,1705078243610,-840.0,0.00027113,2]
[311410616,1705078243619,-7999.99,0.00027113,6]
[311410618,1705078243631,-1559.27,0.00027123,2]
[311410620,1705078243642,-164.62,0.00027268,2]
[311410622,1705078243652,-155.0,0.00027397,2]
[311410624,1705078243661,-250.0,0.00027397,2]
[311410627,1705078243672,-821.65,0.00027397,4]
[311410629,1705078243681,-5687.92805834,0.000274,2]
[311410631,1705078243690,-250.0,0.000274,2]
[311410632,1705078243699,-163.83,0.000274,2]
[311410634,1705078243708,-163.83,0.000274,2]
[311410637,1705078243717,-163.83,0.000274,2]
[311410639,1705078243727,-163.83,0.000274,2]
[311410641,1705078243737,-163.83,0.000274,2]
[311410642,1705078243746,-163.83,0.000274,2]
[311410645,1705078243755,-1053.86501796,0.00027426,2]
[311410647,1705078243764,-384.9,0.00027561,2]
[311410649,1705078243773,-714.42,0.00027715,2]
[311410651,1705078243782,-202.78738506,0.00028,2]
[311410653,1705078243792,-687.85574589,0.00028,2]
[311410655,1705078243801,-200.0,0.00028485,3]
[311410657,1705078243811,-384.9,0.00028539,2]
[311410659,1705078243821,-14024.67514003,0.00028776,2]
[311410661,1705078243830,-1350.0,0.00029,3]
[311410663,1705078243840,-3996.72242493,0.00029,2]
[311410665,1705078243849,-150.0,0.00029029,2]
[311410667,1705078243859,-428.286,0.00029033,2]
[311410669,1705078243868,-234.0,0.00029033,2]
[311410671,1705078243877,-223.8,0.00029033,2]
[311410672,1705078243887,-19105.65798421,0.000295,2]
[311410674,1705078243896,-200.0,0.00029512,3]
[311410676,1705078243906,-800.0,0.00029512,5]
[311410678,1705078243915,-384.9,0.00029518,2]
[311410680,1705078243924,-200.0,0.00029824,2]
[311410683,1705078243934,-840.0,0.00029824,2]
[311410685,1705078243943,-1327.0,0.000299,5]
[311410687,1705078243952,-705.68739337,0.0003,2]
[311410689,1705078243961,-9625.15929167,0.0003,2]
[311410691,1705078243970,-1724.27065354,0.0003,4]
[311410693,1705078243980,-155.0,0.0003,2]
[311410695,1705078243989,-6851.60015863,0.0003,4]
[311410697,1705078243997,-581.18679215,0.0003,2]
[311410699,1705078244007,-155.0,0.0003,2]
[311410701,1705078244015,-155.0,0.0003,2]
[311410703,1705078244025,-153.84,0.00030137,2]
[311410705,1705078244034,-200.0,0.00030137,2]
[311410707,1705078244043,-260.44,0.00030382,2]
[311410709,1705078244052,-384.9,0.00030496,2]
[311410711,1705078244061,-14024.67514003,0.00030792,2]
[311410712,1705078244070,-546.42712193,0.00030879,2]
[311410714,1705078244079,-151.75212957,0.000309,2]
[311410716,1705078244089,-151.75212932,0.000309,2]
[311410718,1705078244098,-151.75212932,0.000309,2]
[311410720,1705078244107,-151.75212932,0.000309,2]
[311410722,1705078244116,-151.75212932,0.000309,2]
[311410724,1705078244126,-151.75212932,0.000309,2]
[311410726,1705078244135,-151.75212932,0.000309,2]
[311410728,1705078244144,-151.75212932,0.0003099,2]
[311410730,1705078244155,-153.84,0.0003105,2]
[311410732,1705078244164,-253.7251797,0.000312,2]
[311410734,1705078244174,-384.9,0.00031475,2]
[311410736,1705078244183,-500.0,0.000315,2]
[311410738,1705078244192,-273147.376443,0.000318,3]
[311410740,1705078244201,-155.0,0.000318,2]
[311410742,1705078244210,-153.84,0.00031963,2]
[311410744,1705078244220,-13056.05779594,0.00032,4]
[311410745,1705078244229,-151.75212932,0.00032216,2]
[311410746,1705078244238,-384.9,0.00032453,2]
[311410747,1705078244248,-166.9,0.00032535,120]
[311410748,1705078244257,-200.0,0.00032535,2]
[311410749,1705078244266,-840.0,0.00032535,2]
[311410750,1705078244275,-2290.457583,0.00032623,2]
[311410751,1705078244284,-225.41595,0.00032623,2]
[311410752,1705078244293,-164.62,0.00032721,2]
[311410753,1705078244303,-14024.67514003,0.00032807,4]
[311410755,1705078244312,-153.84,0.00032877,2]
[311410757,1705078244322,-622.72,0.00032877,15]
[311410759,1705078244331,-2290.457583,0.00033031,2]
[311410761,1705078244340,-225.41595,0.00033031,2]
[311410763,1705078244351,-384.9,0.00033432,2]
[311410765,1705078244361,-2290.457583,0.00033439,2]
[311410768,1705078244370,-225.41595,0.00033439,2]
[311410770,1705078244380,-151.75212932,0.00033443,2]
[311410772,1705078244390,-40802.0,0.000335,3]
[311410774,1705078244399,-153.84,0.0003379,2]
[311410775,1705078244408,-2290.457583,0.00033847,2]
[311410777,1705078244418,-225.41595,0.00033847,2]
[311410780,1705078244428,-8540.50218478,0.00033878,9]
[311410782,1705078244437,-2669.559526,0.00033878,10]
[311410784,1705078244446,-14088.37248378,0.00033878,10]
[311410786,1705078244455,-221.48270539,0.00033912,7]
[311410788,1705078244464,-155.0,0.00034,2]
[311410790,1705078244474,-1000.0,0.00034,4]
[311410792,1705078244483,-801.48193066,0.00034,4]
[311410794,1705078244492,-155.0,0.0003411,4]
[311410795,1705078244502,-2290.457583,0.00034255,2]
[311410797,1705078244511,-225.41595,0.00034255,2]
[311410799,1705078244520,-500.0,0.00034275,2]
[311410802,1705078244529,-384.9,0.0003441,2]
[311410804,1705078244539,-1895.292871,0.0003452,2]
[311410806,1705078244549,-15436.917263,0.0003452,2]
[311410807,1705078244558,-3000.0,0.000346,2]
[311410808,1705078244567,-1163.26,0.00034649,30]
[311410810,1705078244576,-180.0,0.00034658,2]
[311410812,1705078244585,-151.75212932,0.0003467,2]
[311410814,1705078244594,-170.8080721,0.00034701,4]
[311410816,1705078244606,-153.84,0.00034703,2]
[311410818,1705078244615,-2842.939306,0.00034794,2]
[311410820,1705078244624,-23155.375895,0.00034794,2]
[311410822,1705078244634,-168.49826235,0.00034816,6]
[311410824,1705078244643,-944.83714707,0.00034816,7]
[311410826,1705078244653,-2037.24162566,0.00034816,7]
[311410828,1705078244662,-221.11108537,0.00034816,7]
[311410830,1705078244670,-878.90867579,0.00034816,7]
[311410832,1705078244680,-675.63097293,0.00034816,7]
[311410834,1705078244689,-1244.15249824,0.00034816,7]
[311410836,1705078244698,-14024.67514003,0.00034823,7]
[311410838,1705078244707,-8949.23110012,0.000349,4]
[311410840,1705078244716,-528.65521967,0.000349,2]
[311410842,1705078244725,-528.65521957,0.000349,2]
[311410844,1705078244735,-528.65521957,0.000349,2]
[311410846,1705078244744,-528.65521957,0.000349,2]
[311410848,1705078244753,-528.65521957,0.000349,2]
[311410850,1705078244762,-528.65521957,0.000349,2]
[311410852,1705078244771,-528.65521957,0.000349,2]
[311410853,1705078244780,-528.65521957,0.000349,2]
[311410854,1705078244789,-3790.585742,0.00034931,2]
[311410855,1705078244798,-30873.834527,0.00034931,2]
[311410856,1705078244808,-4992.53950682,0.00035,16]
[311410860,1705078244865,-2500.0,0.00035,2]
[311410862,1705078244874,-166.1768957,0.00035,4]
[311410864,1705078244883,-519.54844331,0.00035,4]
[311410865,1705078244893,-1701.83496698,0.00035,10]
[311410868,1705078244904,-16426.79456655,0.00035,2]
[311410869,1705078244914,-1804.81442942,0.00035,4]
[311410871,1705078244925,-255.47708732,0.00035,4]
[311410873,1705078244935,-150.0,0.00035,7]
[311410875,1705078244946,-281.05479821,0.00035,2]
[311410878,1705078244956,-446.78845482,0.00035,4]
[311410880,1705078244968,-1255.60670788,0.00035,4]
[311410881,1705078244978,-617.90544107,0.00035,4]
[311410884,1705078244990,-185.56735423,0.00035,4]
[311410885,1705078245001,-164.0,0.00035,2]
[311410887,1705078245011,-528.65521957,0.00035034,2]
[311410889,1705078245022,-4738.232178,0.00035068,2]
[311410891,1705078245033,-38592.293159,0.00035068,2]
[311410893,1705078245043,-546.42712193,0.00035115,2]
[311410895,1705078245053,-6633.525049,0.00035342,2]
[311410897,1705078245063,-54029.210423,0.00035342,2]
[311410899,1705078245073,-384.9,0.00035389,2]
[311410901,1705078245083,-1000.0,0.000356,2]
[311410903,1705078245093,-3499.233372,0.000356,3]
[311410905,1705078245105,-750.0,0.000356,2]
[311410907,1705078245115,-500.0,0.00035616,4]
[311410909,1705078245126,-500.0,0.00035616,4]
[311410911,1705078245136,-500.0,0.00035616,4]
[311410913,1705078245147,-500.0,0.00035616,4]
[311410915,1705078245158,-500.0,0.00035616,2]
[311410917,1705078245168,-500.0,0.00035616,4]
[311410919,1705078245177,-500.0,0.00035616,4]
[311410921,1705078245188,-500.0,0.00035616,4]
[311410924,1705078245198,-500.0,0.00035616,4]
[311410925,1705078245208,-500.0,0.00035616,4]
[311410927,1705078245219,-500.0,0.00035616,4]
[311410929,1705078245229,-500.0,0.00035616,4]
[311410931,1705078245239,-500.0,0.00035616,4]
[311410933,1705078245250,-500.0,0.00035616,4]
[311410935,1705078245259,-500.0,0.00035616,4]
[311410937,1705078245268,-500.0,0.00035616,4]
[311410939,1705078245277,-500.0,0.00035616,4]
[311410941,1705078245287,-500.0,0.00035616,4]
[311410943,1705078245295,-500.0,0.00035616,4]
[311410945,1705078245304,-500.0,0.00035616,4]
[311410947,1705078245315,-500.0,0.00035616,4]
[311410949,1705078245324,-500.0,0.00035616,4]
[311410951,1705078245333,-500.0,0.00035616,2]
[311410952,1705078245341,-500.0,0.00035616,4]
[311410954,1705078245351,-500.0,0.00035616,4]
[311410956,1705078245361,-500.0,0.00035616,4]
[311410958,1705078245369,-500.0,0.00035616,4]
[311410959,1705078245378,-500.0,0.00035616,4]
[311410961,1705078245388,-500.0,0.00035616,4]
[311410963,1705078245397,-500.0,0.00035616,4]
[311410965,1705078245406,-500.0,0.00035616,4]
[311410966,1705078245415,-500.0,0.00035616,4]
[311410968,1705078245424,-500.0,0.00035616,4]
[311410970,1705078245433,-500.0,0.00035616,4]
[311410971,1705078245442,-500.0,0.00035616,4]
[311410972,1705078245451,-500.0,0.00035616,4]
[311410973,1705078245460,-500.0,0.00035616,4]
[311410974,1705078245469,-500.0,0.00035616,4]
[311410975,1705078245479,-500.0,0.00035616,4]
[311410976,1705078245487,-500.0,0.00035616,4]
[311410978,1705078245496,-500.0,0.00035616,4]
[311410979,1705078245505,-500.0,0.00035616,4]
[311410981,1705078245514,-500.0,0.00035616,4]
[311410983,1705078245523,-500.0,0.00035616,4]
[311410984,1705078245533,-500.0,0.00035616,4]
[311410986,1705078245542,-500.0,0.00035616,4]
[311410988,1705078245551,-500.0,0.00035616,4]
[311410990,1705078245560,-500.0,0.00035616,4]
[311410992,1705078245569,-500.0,0.00035616,4]
[311410993,1705078245578,-503.82440489,0.00035616,4]
[311410995,1705078245587,-500.0,0.00035616,4]
[311410997,1705078245597,-500.0,0.00035616,4]
[311410999,1705078245612,-500.0,0.00035616,4]
[311411002,1705078245621,-500.0,0.00035616,4]
[311411005,1705078245631,-500.0,0.00035616,4]
[311411006,1705078245640,-500.0,0.00035616,4]
[311411008,1705078245648,-500.0,0.00035616,4]
[311411011,1705078245657,-500.0,0.00035616,4]
[311411012,1705078245666,-500.0,0.00035616,4]
[311411015,1705078245676,-500.0,0.00035616,4]
[311411017,1705078245685,-500.0,0.00035616,4]
[311411019,1705078245696,-500.0,0.00035616,4]
[311411022,1705078245705,-500.0,0.00035616,4]
[311411025,1705078245714,-500.0,0.00035616,4]
[311411026,1705078245723,-809.77,0.00035616,4]
[311411028,1705078245732,-500.0,0.00035616,4]
[311411030,1705078245741,-500.0,0.00035616,4]
[311411032,1705078245750,-500.0,0.00035616,4]
[311411033,1705078245759,-500.0,0.00035616,4]
[311411035,1705078245768,-500.0,0.00035616,4]
[311411037,1705078245777,-500.0,0.00035616,4]
[311411038,1705078245786,-500.0,0.00035616,4]
[311411040,1705078245795,-500.0,0.00035616,4]
[311411042,1705078245804,-500.0,0.00035616,4]
[311411044,1705078245813,-500.0,0.00035616,4]
[311411045,1705078245822,-500.0,0.00035616,4]
[311411047,1705078245832,-500.0,0.00035616,4]
[311411049,1705078245841,-520.63788136,0.00035616,4]
[311411051,1705078245852,-500.0,0.00035616,4]
[311411052,1705078245861,-500.0,0.00035616,4]
[311411054,1705078245871,-535.10351517,0.00035616,4]
[311411056,1705078245880,-500.0,0.00035616,4]
[311411058,1705078245889,-500.0,0.00035616,4]
[311411059,1705078245899,-500.0,0.00035616,4]
[311411061,1705078245909,-215.7,0.00035616,4]
[311411063,1705078245918,-500.0,0.00035616,4]
[311411064,1705078245927,-500.0,0.00035616,4]
[311411065,1705078245936,-500.0,0.00035616,4]
[311411066,1705078245945,-500.0,0.00035616,4]
[311411067,1705078245955,-500.0,0.00035616,4]
[311411068,1705078245964,-500.0,0.00035616,4]
[311411069,1705078245973,-731.98,0.00035616,4]
[311411070,1705078245983,-500.0,0.00035616,4]
[311411071,1705078245992,-500.0,0.00035616,4]
[311411072,1705078246001,-500.0,0.00035616,4]
[311411073,1705078246010,-500.0,0.00035616,4]
[311411074,1705078246020,-500.0,0.00035616,4]
[311411075,1705078246029,-500.0,0.00035616,4]
[311411076,1705078246039,-500.0,0.00035616,4]
[311411077,1705078246048,-505.05574016,0.00035616,4]
[311411078,1705078246058,-500.0,0.00035616,4]
[311411079,1705078246067,-500.0,0.00035616,4]
[311411080,1705078246077,-500.0,0.00035616,4]
[311411081,1705078246085,-500.0,0.00035616,4]
[311411082,1705078246094,-500.0,0.00035616,4]
[311411083,1705078246107,-500.0,0.00035616,4]
[311411084,1705078246117,-500.0,0.00035616,4]
[311411085,1705078246127,-500.0,0.00035616,4]
[311411086,1705078246137,-500.0,0.00035616,4]
[311411087,1705078246146,-500.0,0.00035616,4]
[311411088,1705078246158,-500.0,0.00035616,4]
[311411089,1705078246167,-500.0,0.00035616,4]
[311411091,1705078246176,-500.0,0.00035616,4]
[311411092,1705078246185,-500.0,0.00035616,4]
[311411094,1705078246194,-500.0,0.00035616,4]
[311411096,1705078246203,-500.0,0.00035616,2]
[311411098,1705078246212,-500.0,0.00035616,4]
[311411100,1705078246221,-500.0,0.00035616,4]
[311411101,1705078246231,-500.0,0.00035616,4]
[311411103,1705078246240,-500.0,0.00035616,4]
[311411105,1705078246249,-500.0,0.00035616,4]
[311411107,1705078246258,-500.0,0.00035616,4]
[311411109,1705078246267,-500.0,0.00035616,4]
[311411111,1705078246276,-500.0,0.00035616,4]
[311411113,1705078246286,-500.0,0.00035616,4]
[311411115,1705078246295,-500.0,0.00035616,4]
[311411116,1705078246305,-500.0,0.00035616,4]
[311411118,1705078246316,-500.0,0.00035616,4]
[311411120,1705078246326,-500.0,0.00035616,4]
[311411122,1705078246335,-500.0,0.00035616,4]
[311411124,1705078246345,-500.0,0.00035616,4]
[311411126,1705078246358,-500.0,0.00035616,4]
[311411128,1705078246368,-508.18,0.00035616,7]
[311411130,1705078246377,-500.0,0.00035616,4]
[311411131,1705078246386,-500.0,0.00035616,4]
[311411133,1705078246397,-500.0,0.00035616,4]
[311411135,1705078246406,-500.0,0.00035616,4]
[311411137,1705078246415,-500.0,0.00035616,4]
[311411139,1705078246424,-500.0,0.00035616,4]
[311411141,1705078246435,-500.0,0.00035616,4]
[311411143,1705078246444,-500.0,0.00035616,4]
[311411145,1705078246456,-500.0,0.00035616,4]
[311411147,1705078246466,-500.0,0.00035616,4]
[311411149,1705078246476,-500.0,0.00035616,4]
[311411151,1705078246486,-500.0,0.00035616,4]
[311411153,1705078246496,-500.0,0.00035616,4]
[311411155,1705078246506,-500.0,0.00035616,4]
[311411157,1705078246516,-500.0,0.00035616,4]
[311411159,1705078246526,-500.0,0.00035616,4]
[311411160,1705078246536,-500.0,0.00035616,4]
[311411162,1705078246545,-500.0,0.00035616,4]
[311411165,1705078246555,-500.0,0.00035616,4]
[311411167,1705078246565,-500.0,0.00035616,4]
[311411169,1705078246575,-500.0,0.00035616,4]
[311411171,1705078246586,-500.0,0.00035616,4]
[311411173,1705078246596,-500.0,0.00035616,4]
[311411175,1705078246610,-500.0,0.00035616,4]
[311411177,1705078246620,-500.0,0.00035616,4]
[311411179,1705078246628,-500.0,0.00035616,4]
[311411181,1705078246638,-500.0,0.00035616,4]
[311411182,1705078246647,-500.0,0.00035616,4]
[311411183,1705078246656,-500.0,0.00035616,4]
[311411184,1705078246666,-500.0,0.00035616,4]
[311411185,1705078246676,-500.0,0.00035616,4]
[311411186,1705078246686,-500.0,0.00035616,4]
[311411187,1705078246697,-500.0,0.00035616,4]
[311411188,1705078246708,-500.0,0.00035616,4]
[311411189,1705078246717,-500.0,0.00035616,4]
[311411190,1705078246727,-500.0,0.00035616,4]
[311411191,1705078246737,-500.0,0.00035616,4]
[311411192,1705078246746,-500.0,0.00035616,4]
[311411193,1705078246755,-500.0,0.00035616,4]
[311411195,1705078246764,-500.0,0.00035616,4]
[311411196,1705078246773,-500.0,0.00035616,4]
[311411198,1705078246782,-500.0,0.00035616,4]
[311411200,1705078246792,-500.0,0.00035616,4]
[311411202,1705078246801,-500.0,0.00035616,4]
[311411204,1705078246811,-500.0,0.00035616,4]
[311411206,1705078246821,-500.0,0.00035616,4]
[311411208,1705078246831,-500.0,0.00035616,4]
[311411210,1705078246841,-500.0,0.00035616,4]
[311411212,1705078246852,-500.0,0.00035616,4]
[311411214,1705078246862,-500.0,0.00035616,4]
[311411216,1705078246872,-500.0,0.00035616,4]
[311411218,1705078246882,-500.0,0.00035616,4]
[311411220,1705078246893,-500.0,0.00035616,4]
[311411222,1705078246903,-504.07027871,0.00035616,4]
[311411224,1705078246914,-1000.0,0.00035616,4]
[311411226,1705078246926,-500.0,0.00035616,4]
[311411228,1705078246935,-500.0,0.00035616,4]
[311411230,1705078246945,-500.0,0.00035616,4]
[311411232,1705078246955,-500.0,0.00035616,4]
[311411234,1705078246965,-500.0,0.00035616,4]
[311411236,1705078246975,-500.0,0.00035616,4]
[311411238,1705078246985,-500.0,0.00035616,4]
[311411240,1705078246996,-500.0,0.00035616,4]
[311411242,1705078247005,-500.0,0.00035616,4]
[311411244,1705078247015,-500.0,0.00035616,4]
[311411246,1705078247025,-500.0,0.00035616,4]
[311411248,1705078247035,-500.0,0.00035616,4]
[311411250,1705078247045,-500.0,0.00035616,4]
[311411252,1705078247055,-500.0,0.00035616,4]
[311411254,1705078247064,-500.0,0.00035616,4]
[311411256,1705078247075,-500.0,0.00035616,4]
[311411258,1705078247085,-500.0,0.00035616,4]
[311411260,1705078247095,-505.82743777,0.00035616,4]